fUST/lending_fUST_20250726
["ID","MTS","AMOUNT","RATE_DAILY","PERIOD"]
[375026768,1753506638622,-500.0,0.00017813,2]
[375026769,1753506638632,-500.0,0.00017813,2]
[375026770,1753506638642,-181.966898,0.00017813,2]
[375026771,1753506638651,-500.0,0.00017813,2]
[375026772,1753506638666,-321.00534795,0.00017813,2]
[375026773,1753506638676,-500.0,0.00017813,2]
[375026774,1753506638686,-500.0,0.00017813,2]
[375026775,1753506638695,-500.0,0.00017813,2]
[375026776,1753506638706,-500.0,0.00017813,2]
[375026777,1753506638715,-500.0,0.00017813,2]
[375026778,1753506638725,-500.0,0.00017813,2]
[375026779,1753506638735,-159.28365577,0.00017813,2]
[375026780,1753506638747,-340.71634423,0.00017813,2]
[375026781,1753506638757,-500.0,0.00017813,2]
[375026782,1753506638766,-500.0,0.00017813,2]
[375026783,1753506638776,-500.0,0.00017813,2]
[375026784,1753506638785,-500.0,0.00017813,2]
[375026785,1753506638794,-478.83024292,0.00017813,2]
[375026786,1753506638804,-500.0,0.00017813,2]
[375026787,1753506638815,-500.0,0.00017813,2]
[375026788,1753506638825,-500.0,0.00017813,2]
[375026789,1753506638834,-500.0,0.00017813,2]
[375026790,1753506638843,-500.0,0.00017813,2]
[375026791,1753506638853,-455.17718198,0.00017813,2]
[375026792,1753506638863,-500.0,0.00017813,2]
[375026793,1753506638873,-500.0,0.00017813,2]
[375026794,1753506638882,-500.0,0.00017813,2]
[375026795,1753506638892,-500.0,0.00017813,2]
[375026796,1753506638902,-500.0,0.00017813,2]
[375026797,1753506638912,-500.0,0.00017813,2]
[375026798,1753506638922,-500.0,0.00017813,2]
[375026799,1753506638932,-500.0,0.00017813,2]
[375026800,1753506638942,-500.0,0.00017813,2]
[375026801,1753506638951,-500.0,0.00017813,2]
[375026802,1753506638961,-500.0,0.00017813,2]
[375026803,1753506638971,-500.0,0.00017813,2]
[375026804,1753506638980,-500.0,0.00017813,2]
[375026805,1753506638990,-500.0,0.00017813,2]
[375026806,1753506638999,-77.40970213,0.00017813,2]
[375026807,1753506639011,-422.59029787,0.00017813,2]
[375026808,1753506639021,-37.40970213,0.00017813,2]
[375026809,1753506639033,-462.59029787,0.00017813,2]
[375026810,1753506639042,-500.0,0.00017813,2]
[375026811,1753506639052,-500.0,0.00017813,2]
[375026812,1753506639061,-409.8788713,0.00017813,2]
[375026813,1753506639073,-90.1211287,0.00017813,2]
[375026814,1753506639083,-500.0,0.00017813,2]
[375026815,1753506639092,-500.0,0.00017813,2]
[375026816,1753506639102,-500.0,0.00017813,2]
[375026817,1753506639111,-500.0,0.00017813,2]
[375026818,1753506639121,-500.0,0.00017813,2]
[375026819,1753506639130,-500.0,0.00017813,2]
[375026820,1753506639140,-500.0,0.00017813,2]
[375026821,1753506639149,-500.0,0.00017813,2]
[375026822,1753506639159,-500.0,0.00017813,2]
[375026823,1753506639170,-500.0,0.00017813,2]
[375026824,1753506639179,-210.68302122,0.00017813,2]
[375026825,1753506639189,-149.32900182,0.00017813,2]
[375026826,1753506639214,-350.67099818,0.00017813,2]
[375026827,1753506639223,-500.0,0.00017813,2]
[375026828,1753506639233,-500.0,0.00017813,2]
[375026829,1753506639242,-161385.54272162,0.00018964,2]
[375026830,1753506639252,-500.0,0.00018973,2]
[375026831,1753506639261,-500.0,0.00018973,2]
[375026832,1753506639272,-504.93433488,0.00018973,2]
[375026833,1753506639281,-1387.57202906,0.00018996,2]
[375026834,1753506639291,-932.22285688,0.0001903,2]
[375026835,1753506639300,-1275.68945057,0.00019038,2]
[375026836,1753506639310,-154.70002975,0.00019078,2]
[375026837,1753506639319,-17679.06371995,0.00019078,2]
[375026838,1753506639328,-3644.91188721,0.00019078,2]
[375026839,1753506639340,-50000.0,0.0001917,2]
[375026840,1753506639349,-503.90734139,0.00019173,2]
[375026841,1753506639358,-500.0,0.00019173,2]
[375026842,1753506639368,-225.08456515,0.00019173,2]
[375026843,1753506639377,-500.0,0.00019173,2]
[375026844,1753506639386,-211.10989588,0.00019173,2]
[375026845,1753506639396,-500.0,0.00019173,2]
[375026846,1753506639405,-500.0,0.00019173,2]
[375026847,1753506639415,-160.3790415,0.00019173,2]
[375026848,1753506639425,-500.63707662,0.00019173,2]
[375026849,1753506639434,-504.76733656,0.00019173,2]
[375026850,1753506639444,-500.0,0.00019173,2]
[375026851,1753506639453,-502.04095239,0.00019173,2]
[375026852,1753506639462,-158.37178087,0.00019173,2]
[375026853,1753506639472,-500.0,0.00019173,2]
[375026854,1753506639481,-500.0,0.00019173,2]
[375026855,1753506639491,-500.0,0.00019173,2]
[375026856,1753506639500,-500.0,0.00019173,2]
[375026857,1753506639509,-500.0,0.00019173,2]
[375026858,1753506639519,-500.0,0.00019173,2]
[375026859,1753506639529,-500.0,0.00019173,2]
[375026860,1753506639538,-500.0,0.00019173,2]
[375026861,1753506639548,-500.0,0.00019173,2]
[375026862,1753506639557,-500.0,0.00019173,2]
[375026863,1753506639566,-500.0,0.00019173,2]
[375026864,1753506639576,-500.0,0.00019173,2]
[375026865,1753506639585,-500.0,0.00019173,2]
[375026866,1753506639595,-500.0,0.00019173,2]
[375026867,1753506639605,-500.0,0.00019173,2]
[375026868,1753506639614,-500.0,0.00019173,2]
[375026869,1753506639623,-504.04967851,0.00019173,2]
[375026870,1753506639632,-500.0,0.00019173,2]
[375026871,1753506639642,-166.34401321,0.00019173,2]
[375026872,1753506639652,-1275.68945057,0.00019176,2]
[375026873,1753506639668,-460.0,0.00019178,2]
[375026874,1753506639678,-460.0,0.00019178,2]
[375026875,1753506639687,-461.81766778,0.00019178,2]
[375026876,1753506639697,-460.0,0.00019178,2]
[375026877,1753506639706,-460.0,0.00019178,2]
[375026878,1753506639715,-460.0,0.00019178,2]
[375026879,1753506639725,-434.2275008,0.00019178,2]
[375026880,1753506639734,-460.0,0.00019178,2]
[375026881,1753506639744,-461.43464817,0.00019178,2]
[375026882,1753506639753,-460.0,0.00019178,2]
[375026883,1753506639763,-460.0,0.00019178,2]
[375026884,1753506639773,-460.0,0.00019178,2]
[375026885,1753506639783,-460.0,0.00019178,2]
[375026886,1753506639792,-151.0,0.00019178,2]
[375026887,1753506639801,-151.0,0.00019178,2]
[375026888,1753506639811,-462.95966224,0.00019178,2]
[375026889,1753506639820,-461.41176516,0.00019178,2]
[375026890,1753506639830,-615.78,0.00019178,2]
[375026891,1753506639839,-460.0,0.00019178,2]
[375026892,1753506639849,-461.67519469,0.00019178,2]
[375026893,1753506639858,-447.66854492,0.00019178,2]
[375026894,1753506639868,-460.0,0.00019178,2]
[375026895,1753506639877,-466.28586178,0.00019178,2]
[375026896,1753506639886,-460.0,0.00019178,2]
[375026897,1753506639896,-460.0,0.00019178,2]
[375026898,1753506639905,-460.0,0.00019178,2]
[375026899,1753506639915,-460.0,0.00019178,2]
[375026900,1753506639924,-463.56578905,0.00019178,2]
[375026901,1753506639934,-460.0,0.00019178,2]
[375026902,1753506639943,-460.0,0.00019178,2]
[375026904,1753506639952,-460.0,0.00019178,2]
[375026905,1753506639962,-460.0,0.00019178,2]
[375026906,1753506639971,-416.33919372,0.00019178,2]
[375026907,1753506639980,-460.0,0.00019178,2]
[375026908,1753506639990,-177.62326149,0.00019178,2]
[375026909,1753506639999,-460.0,0.00019178,2]
[375026910,1753506640008,-460.0,0.00019178,2]
[375026911,1753506640018,-289.23794467,0.00019178,2]
[375026912,1753506640028,-460.0,0.00019178,2]
[375026913,1753506640037,-460.0,0.00019178,2]
[375026914,1753506640047,-460.0,0.00019178,2]
[375026915,1753506640056,-460.0,0.00019178,2]
[375026916,1753506640065,-460.0,0.00019178,2]
[375026917,1753506640076,-460.0,0.00019178,2]
[375026918,1753506640091,-460.7798428,0.00019178,2]
[375026919,1753506640101,-173.70711942,0.00019178,2]
[375026921,1753506640110,-522.30280774,0.00019178,2]
[375026922,1753506640119,-684.31,0.00019178,2]
[375026923,1753506640129,-266.61718001,0.00019178,2]
[375026924,1753506640139,-460.0,0.00019178,2]
[375026925,1753506640150,-887.79,0.00019178,2]
[375026926,1753506640258,-463.48573571,0.00019178,2]
[375026927,1753506640270,-465.69600055,0.00019178,2]
[375026928,1753506640280,-460.0,0.00019178,2]
[375026929,1753506640290,-460.0,0.00019178,2]
[375026930,1753506640299,-460.0,0.00019178,2]
[375026931,1753506640309,-460.0,0.00019178,2]
[375026932,1753506640318,-460.0,0.00019178,2]
[375026933,1753506640327,-460.0,0.00019178,2]
[375026934,1753506640337,-460.0,0.00019178,2]
[375026935,1753506640346,-778.64,0.00019178,2]
[375026936,1753506640356,-460.0,0.00019178,2]
[375026937,1753506640366,-460.0,0.00019178,2]
[375026938,1753506640375,-460.0,0.00019178,2]
[375026939,1753506640385,-225.262,0.00019178,2]
[375026940,1753506640395,-460.0,0.00019178,2]
[375026941,1753506640404,-460.0,0.00019178,2]
[375026942,1753506640414,-460.0,0.00019178,2]
[375026943,1753506640423,-460.0,0.00019178,2]
[375026944,1753506640433,-460.0,0.00019178,2]
[375026945,1753506640443,-460.0,0.00019178,2]
[375026946,1753506640452,-460.0,0.00019178,2]
[375026948,1753506640461,-465.2611379,0.00019178,2]
[375026950,1753506640471,-328.93406664,0.00019178,2]
[375026951,1753506640480,-460.0,0.00019178,2]
[375026952,1753506640490,-460.0,0.00019178,2]
[375026953,1753506640500,-257.98413322,0.00019178,2]
[375026954,1753506640509,-460.0,0.00019178,2]
[375026955,1753506640519,-460.0,0.00019178,2]
[375026956,1753506640529,-461.29578883,0.00019178,2]
[375026957,1753506640539,-460.0,0.00019178,2]
[375026958,1753506640548,-525.06,0.00019178,2]
[375026959,1753506640557,-266.3090274,0.00019178,2]
[375026960,1753506640568,-462.94601988,0.00019178,2]
[375026961,1753506640577,-460.0,0.00019178,2]
[375026962,1753506640586,-460.0,0.00019178,2]
[375026963,1753506640596,-460.0,0.00019178,2]
[375026964,1753506640614,-460.0,0.00019178,2]
[375026965,1753506640626,-460.0,0.00019178,2]
[375026966,1753506640636,-1191.62,0.00019178,2]
[375026967,1753506640646,-460.0,0.00019178,2]
[375026968,1753506640659,-460.0,0.00019178,2]
[375026969,1753506640670,-462.4968254,0.00019178,2]
[375026970,1753506640681,-460.0,0.00019178,2]
[375026971,1753506640692,-1208.45,0.00019178,2]
[375026972,1753506640703,-490.43335583,0.00019178,2]
[375026973,1753506640714,-460.0,0.00019178,2]
[375026974,1753506640724,-410.96854598,0.00019178,2]
[375026975,1753506640737,-460.0,0.00019178,2]
[375026976,1753506640748,-460.0,0.00019178,2]
[375026977,1753506640758,-460.0,0.00019178,2]
[375026978,1753506640768,-460.0,0.00019178,2]
[375026979,1753506640779,-460.0,0.00019178,2]
[375026980,1753506640790,-460.0,0.00019178,2]
[375026981,1753506640799,-429.59949589,0.00019178,2]
[375026982,1753506640809,-473.42,0.00019178,2]
[375026983,1753506640819,-460.0,0.00019178,2]
[375026984,1753506640829,-460.0,0.00019178,2]
[375026985,1753506640838,-460.0,0.00019178,2]
[375026986,1753506640849,-526.31,0.00019178,2]
[375026987,1753506640858,-460.0,0.00019178,2]
[375026988,1753506640869,-460.0,0.00019178,2]
[375026989,1753506640879,-475.00467818,0.00019178,2]
[375026990,1753506640888,-460.0,0.00019178,2]
[375026991,1753506640898,-460.0,0.00019178,2]
[375026992,1753506640908,-460.0,0.00019178,2]
[375026993,1753506640918,-460.0,0.00019178,2]
[375026994,1753506640928,-460.0,0.00019178,2]
[375026995,1753506640937,-460.0,0.00019178,2]
[375026996,1753506640947,-460.0,0.00019178,2]
[375026997,1753506640957,-460.0,0.00019178,2]
[375026998,1753506640967,-460.0,0.00019178,2]
[375026999,1753506640977,-460.0,0.00019178,2]
[375027000,1753506640986,-460.0,0.00019178,2]
[375027001,1753506640996,-460.0,0.00019178,2]
[375027002,1753506641006,-460.0,0.00019178,2]
[375027003,1753506641016,-460.0,0.00019178,2]
[375027004,1753506641025,-460.0,0.00019178,2]
[375027005,1753506641035,-460.0,0.00019178,2]
[375027006,1753506641045,-460.0,0.00019178,2]
[375027007,1753506641055,-464.44,0.00019178,2]
[375027008,1753506641065,-460.0,0.00019178,2]
[375027009,1753506641075,-460.0,0.00019178,2]
[375027010,1753506641084,-460.0,0.00019178,2]
[375027011,1753506641094,-460.0,0.00019178,2]
[375027012,1753506641104,-460.0,0.00019178,2]
[375027013,1753506641114,-683.39,0.00019178,2]
[375027014,1753506641123,-460.0,0.00019178,2]
[375027015,1753506641133,-460.0,0.00019178,2]
[375027016,1753506641143,-460.0,0.00019178,2]
[375027017,1753506641152,-460.0,0.00019178,2]
[375027018,1753506641162,-460.0,0.00019178,2]
[375027019,1753506641171,-460.0,0.00019178,2]
[375027020,1753506641181,-469.48150623,0.00019178,2]
[375027021,1753506641191,-999.46,0.00019178,2]
[375027022,1753506641201,-462.54360865,0.00019178,2]
[375027023,1753506641211,-460.0,0.00019178,2]
[375027024,1753506641221,-462.56280889,0.00019178,2]
[375027025,1753506641231,-460.0,0.00019178,2]
[375027026,1753506641242,-344.38385229,0.00019178,2]
[375027027,1753506641253,-606.99,0.00019178,2]
[375027028,1753506641262,-460.0,0.00019178,2]
[375027029,1753506641272,-151.0,0.00019178,2]
[375027030,1753506641282,-254.87851502,0.00019178,2]
[375027031,1753506641291,-460.0,0.00019178,2]
[375027032,1753506641301,-460.0,0.00019178,2]
[375027033,1753506641310,-460.0,0.00019178,2]
[375027034,1753506641320,-466.42093496,0.00019178,2]
[375027035,1753506641330,-460.0,0.00019178,2]
[375027036,1753506641339,-460.0,0.00019178,2]
[375027037,1753506641348,-460.0,0.00019178,2]
[375027038,1753506641358,-460.0,0.00019178,2]
[375027039,1753506641368,-460.0,0.00019178,2]
[375027040,1753506641378,-460.0,0.00019178,2]
[375027041,1753506641388,-460.0,0.00019178,2]
[375027042,1753506641398,-460.0,0.00019178,2]
[375027043,1753506641407,-460.0,0.00019178,2]
[375027044,1753506641417,-460.0,0.00019178,2]
[375027045,1753506641427,-460.0,0.00019178,2]
[375027046,1753506641436,-468.61885676,0.00019178,2]
[375027047,1753506641445,-448.96349543,0.00019178,2]
[375027048,1753506641455,-460.0,0.00019178,2]
[375027049,1753506641464,-460.0,0.00019178,2]
[375027050,1753506641474,-2091.96,0.00019178,2]
[375027051,1753506641484,-460.99829227,0.00019178,2]
[375027052,1753506641494,-460.0,0.00019178,2]
[375027053,1753506641504,-460.0,0.00019178,2]
[375027054,1753506641514,-460.0,0.00019178,2]
[375027055,1753506641523,-460.0,0.00019178,2]
[375027056,1753506641533,-1145.81,0.00019178,2]
[375027057,1753506641543,-460.0,0.00019178,2]
[375027058,1753506641553,-466.7650482,0.00019178,2]
[375027059,1753506641563,-460.0,0.00019178,2]
[375027060,1753506641572,-460.0,0.00019178,2]
[375027061,1753506641584,-460.0,0.00019178,2]
[375027062,1753506641593,-460.0,0.00019178,2]
[375027063,1753506641603,-754.64,0.00019178,2]
[375027064,1753506641613,-460.0,0.00019178,2]
[375027065,1753506641622,-465.66257263,0.00019178,2]
[375027066,1753506641632,-460.0,0.00019178,2]
[375027067,1753506641642,-460.0,0.00019178,2]
[375027068,1753506641652,-162.81104477,0.00019178,2]
[375027069,1753506641671,-462.20266952,0.00019178,2]
[375027070,1753506641681,-460.0,0.00019178,2]
[375027071,1753506641691,-460.0,0.00019178,2]
[375027072,1753506641702,-460.0,0.00019178,2]
[375027073,1753506641711,-460.0,0.00019178,2]
[375027074,1753506641721,-460.0,0.00019178,2]
[375027075,1753506641731,-500.0,0.00019178,2]
[375027076,1753506641741,-500.0,0.00019178,2]
[375027077,1753506641751,-500.0,0.00019178,2]
[375027078,1753506641760,-500.0,0.00019178,2]
[375027079,1753506641771,-500.0,0.00019178,2]
[375027080,1753506641781,-500.0,0.00019178,2]
[375027081,1753506641790,-541.73092169,0.00019178,2]
[375027082,1753506641800,-500.0,0.00019178,2]
[375027083,1753506641810,-460.0,0.00019178,2]
[375027084,1753506641820,-410.48074005,0.00019178,2]
[375027085,1753506641830,-460.0,0.00019178,2]
[375027086,1753506641840,-460.0,0.00019178,2]
[375027087,1753506641850,-460.73246361,0.00019178,2]
[375027088,1753506641859,-460.85897276,0.00019178,2]
[375027089,1753506641869,-460.0,0.00019178,2]
[375027090,1753506641880,-460.0,0.00019178,2]
[375027091,1753506641891,-460.0,0.00019178,2]
[375027092,1753506641901,-460.0,0.00019178,2]
[375027093,1753506641910,-403.32982664,0.00019178,2]
[375027094,1753506641920,-517.45,0.00019178,2]
[375027095,1753506641929,-546.35,0.00019178,2]
[375027096,1753506641939,-460.0,0.00019178,2]
[375027097,1753506641948,-460.0,0.00019178,2]
[375027098,1753506641958,-460.0,0.00019178,2]
[375027099,1753506641967,-460.0,0.00019178,2]
[375027100,1753506641977,-818.21,0.00019178,2]
[375027101,1753506641986,-460.0,0.00019178,2]
[375027102,1753506641996,-460.0,0.00019178,2]
[375027103,1753506642006,-460.0,0.00019178,2]
[375027104,1753506642015,-460.0,0.00019178,2]
[375027105,1753506642025,-293.57597022,0.00019178,2]
[375027106,1753506642035,-460.0,0.00019178,2]
[375027107,1753506642044,-462.39622403,0.00019178,2]
[375027108,1753506642054,-2542.73,0.00019178,2]
[375027109,1753506642063,-5382.96,0.00019178,2]
[375027110,1753506642073,-460.0,0.00019178,2]
[375027111,1753506642082,-2747.99,0.00019178,2]
[375027112,1753506642092,-465.50436324,0.00019178,2]
[375027113,1753506642102,-460.0,0.00019178,2]
[375027114,1753506642112,-460.0,0.00019178,2]
[375027115,1753506642121,-151.0,0.00019178,2]
[375027116,1753506642130,-460.0,0.00019178,2]
[375027117,1753506642140,-7623.72,0.00019178,2]
[375027118,1753506642150,-460.0,0.00019178,2]
[375027119,1753506642159,-460.0,0.00019178,2]
[375027120,1753506642169,-2683.38,0.00019178,2]
[375027121,1753506642179,-945.13,0.00019178,2]
[375027122,1753506642188,-460.0,0.00019178,2]
[375027123,1753506642199,-460.0,0.00019178,2]
[375027124,1753506642208,-460.0,0.00019178,2]
[375027125,1753506642218,-460.0,0.00019178,2]
[375027126,1753506642227,-460.0,0.00019178,2]
[375027127,1753506642236,-748.91,0.00019178,2]
[375027128,1753506642245,-461.90795584,0.00019178,2]
[375027129,1753506642255,-151.0,0.00019178,2]
[375027130,1753506642264,-460.0,0.00019178,2]
[375027131,1753506642275,-460.0,0.00019178,2]
[375027132,1753506642284,-151.0,0.00019178,2]
[375027133,1753506642293,-1055.01,0.00019178,2]
[375027134,1753506642303,-460.0,0.00019178,2]
[375027135,1753506642312,-151.0,0.00019178,2]
[375027136,1753506642428,-460.0,0.00019178,2]
[375027137,1753506642438,-460.0,0.00019178,2]
[375027138,1753506642448,-460.0,0.00019178,2]
[375027139,1753506642457,-151.0,0.00019178,2]
[375027140,1753506642466,-460.0,0.00019178,2]
[375027141,1753506642475,-460.0,0.00019178,2]
[375027142,1753506642484,-460.0,0.00019178,2]
[375027143,1753506642493,-460.0,0.00019178,2]
[375027144,1753506642503,-869.16,0.00019178,2]
[375027145,1753506642512,-460.0,0.00019178,2]
[375027146,1753506642522,-460.0,0.00019178,2]
[375027147,1753506642533,-460.0,0.00019178,2]
[375027148,1753506642543,-4074.24,0.00019178,2]
[375027149,1753506642553,-462.02150805,0.00019178,2]
[375027150,1753506642563,-460.0,0.00019178,2]
[375027151,1753506642574,-460.0,0.00019178,2]
[375027152,1753506642583,-479.02,0.00019178,2]
[375027153,1753506642593,-284.84734229,0.00019178,2]
[375027154,1753506642603,-460.0,0.00019178,2]
[375027155,1753506642613,-1662.62,0.00019178,2]
[375027156,1753506642622,-460.0,0.00019178,2]
[375027157,1753506642631,-579.19,0.00019178,2]
[375027158,1753506642640,-500.0,0.00019178,2]
[375027159,1753506642650,-460.0,0.00019178,2]
[375027160,1753506642663,-460.0,0.00019178,2]
[375027161,1753506642672,-824.14,0.00019178,2]
[375027162,1753506642682,-1407.33,0.00019178,2]
[375027163,1753506642691,-480.52,0.00019178,2]
[375027164,1753506642700,-461.37391314,0.00019178,2]
[375027165,1753506642711,-605.21,0.00019178,2]
[375027166,1753506642720,-460.0,0.00019178,2]
[375027167,1753506642731,-460.0,0.00019178,2]
[375027168,1753506642741,-1554.62,0.00019178,2]
[375027169,1753506642751,-460.0,0.00019178,2]
[375027170,1753506642761,-2654.05,0.00019178,2]
[375027171,1753506642771,-151.0,0.00019178,2]
[375027172,1753506642782,-460.0,0.00019178,2]
[375027173,1753506642792,-151.0,0.00019178,2]
[375027174,1753506642801,-460.0,0.00019178,2]
[375027175,1753506642810,-468.45644933,0.00019178,2]
[375027176,1753506642819,-471.14596406,0.00019178,2]
[375027177,1753506642829,-460.0,0.00019178,2]
[375027178,1753506642838,-460.0,0.00019178,2]
[375027179,1753506642848,-3810.16,0.00019178,2]
[375027180,1753506642857,-460.0,0.00019178,2]
[375027181,1753506642866,-429.686029,0.00019178,2]
[375027182,1753506642877,-460.0,0.00019178,2]
[375027183,1753506642886,-460.0,0.00019178,2]
[375027184,1753506642897,-314.59047777,0.00019178,2]
[375027185,1753506642906,-2218.68,0.00019178,2]
[375027186,1753506642915,-461.92834388,0.00019178,2]
[375027187,1753506642926,-460.0,0.00019178,2]
[375027188,1753506642936,-509.15,0.00019178,2]
[375027189,1753506642947,-460.0,0.00019178,2]
[375027190,1753506642957,-460.0,0.00019178,2]
[375027191,1753506642966,-461.88280138,0.00019178,2]
[375027192,1753506642976,-460.0,0.00019178,2]
[375027193,1753506642985,-460.0,0.00019178,2]
[375027194,1753506642995,-421.45532179,0.00019178,2]
[375027195,1753506643005,-460.0,0.00019178,2]
[375027196,1753506643014,-460.0,0.00019178,2]
[375027197,1753506643024,-429.13335672,0.00019178,2]
[375027198,1753506643033,-460.0,0.00019178,2]
[375027199,1753506643043,-151.0,0.00019178,2]
[375027200,1753506643052,-460.0,0.00019178,2]
[375027201,1753506643061,-1435.19,0.00019178,2]
[375027203,1753506643070,-613.83,0.00019178,2]
[375027205,1753506643079,-201.10812,0.00019178,2]
[375027206,1753506643088,-971.21,0.00019178,2]
[375027207,1753506643097,-460.0,0.00019178,2]
[375027208,1753506643106,-460.0,0.00019178,2]
[375027209,1753506643115,-678.3,0.00019178,2]
[375027210,1753506643124,-2704.97,0.00019178,2]
[375027211,1753506643133,-460.0,0.00019178,2]
[375027212,1753506643142,-312.983737,0.00019178,2]
[375027213,1753506643151,-460.0,0.00019178,2]
[375027214,1753506643160,-460.0,0.00019178,2]
[375027215,1753506643168,-10728.03,0.00019178,2]
[375027216,1753506643177,-460.0,0.00019178,2]
[375027217,1753506643186,-312.983737,0.00019178,2]
[375027218,1753506643195,-460.0,0.00019178,2]
[375027219,1753506643204,-844.79,0.00019178,2]
[375027220,1753506643213,-460.0,0.00019178,2]
[375027221,1753506643222,-460.0,0.00019178,2]
[375027222,1753506643231,-460.0,0.00019178,2]
[375027223,1753506643240,-463.40792529,0.00019178,2]
[375027224,1753506643249,-460.0,0.00019178,2]
[375027225,1753506643258,-630.44069757,0.00019178,2]
[375027226,1753506643268,-764.48,0.00019178,2]
[375027227,1753506643277,-460.62106973,0.00019178,2]
[375027228,1753506643287,-460.0,0.00019178,2]
[375027229,1753506643296,-152.626866,0.00019178,2]
[375027230,1753506643305,-460.0,0.00019178,2]
[375027231,1753506643314,-3095.75,0.00019178,2]
[375027232,1753506643323,-1723.2,0.00019178,2]
[375027233,1753506643333,-151.0,0.00019178,2]
[375027234,1753506643343,-460.0,0.00019178,2]
[375027235,1753506643352,-460.0,0.00019178,2]
[375027236,1753506643362,-460.0,0.00019178,2]
[375027237,1753506643371,-583.83,0.00019178,2]
[375027238,1753506643381,-460.0,0.00019178,2]
[375027239,1753506643390,-460.0,0.00019178,2]
[375027240,1753506643399,-151.0,0.00019178,2]
[375027241,1753506643408,-460.0,0.00019178,2]
[375027242,1753506643417,-1005.62,0.00019178,2]
[375027243,1753506643427,-460.0,0.00019178,2]
[375027244,1753506643436,-460.0,0.00019178,2]
[375027245,1753506643445,-266.743077,0.00019178,2]
[375027246,1753506643454,-151.0,0.00019178,2]
[375027247,1753506643464,-460.0,0.00019178,2]
[375027248,1753506643473,-2244.25,0.00019178,2]
[375027249,1753506643482,-460.0,0.00019178,2]
[375027250,1753506643491,-151.0,0.00019178,2]
[375027251,1753506643501,-460.0,0.00019178,2]
[375027252,1753506643510,-1436.59,0.00019178,2]
[375027253,1753506643519,-460.0,0.00019178,2]
[375027254,1753506643529,-460.0,0.00019178,2]
[375027255,1753506643538,-460.0,0.00019178,2]
[375027256,1753506643548,-460.0,0.00019178,2]
[375027257,1753506643558,-460.0,0.00019178,2]
[375027258,1753506643568,-293.46693645,0.00019178,2]
[375027259,1753506643577,-460.0,0.00019178,2]
[375027260,1753506643587,-151.0,0.00019178,2]
[375027261,1753506643597,-463.54403321,0.00019178,2]
[375027262,1753506643606,-460.0,0.00019178,2]
[375027263,1753506643615,-460.0,0.00019178,2]
[375027264,1753506643625,-460.0,0.00019178,2]
[375027265,1753506643634,-151.0,0.00019178,2]
[375027266,1753506643644,-460.0,0.00019178,2]
[375027267,1753506643653,-460.0,0.00019178,2]
[375027268,1753506643666,-460.0,0.00019178,2]
[375027269,1753506643676,-929.83,0.00019178,2]
[375027270,1753506643686,-359.54865265,0.00019178,2]
[375027271,1753506643695,-460.0,0.00019178,2]
[375027272,1753506643705,-460.0,0.00019178,2]
[375027273,1753506643715,-460.0,0.00019178,2]